[Event "Early-Titled-Tuesday-Blitz-January-16-2024"]
[Site "Chess.com"]
[Date "2024.01.16"]
[Round "5"]
[White "LoScecco"]
[Black "EsmeraldasAnderson03"]
[Result "1-0"]
[WhiteElo "2230"]
[BlackElo "2396"]
[TimeControl "180+1"]
[EndTime "8:59:12 PST"]
[Termination "LoScecco won on time"]

1. c4 {[%clk 0:03:00.9]} 1... e5 {[%clk 0:02:57]} 2. Nc3 {[%clk 0:03:00.5]} 2...
Nc6 {[%clk 0:02:56.8]} 3. g3 {[%clk 0:02:59.7]} 3... f5 {[%clk 0:02:57.4]} 4.
Bg2 {[%clk 0:02:58.6]} 4... Nf6 {[%clk 0:02:58]} 5. d3 {[%clk 0:02:56.7]} 5...
Bc5 {[%clk 0:02:54]} 6. e3 {[%clk 0:02:55.6]} 6... d6 {[%clk 0:02:52.8]} 7. Nge2
{[%clk 0:02:55.3]} 7... a6 {[%clk 0:02:53.3]} 8. d4 {[%clk 0:02:48.7]} 8... Ba7
{[%clk 0:02:52.9]} 9. O-O {[%clk 0:02:39.6]} 9... O-O {[%clk 0:02:52.6]} 10. b3
{[%clk 0:02:30.4]} 10... Qe8 {[%clk 0:02:50.5]} 11. Bb2 {[%clk 0:02:24.9]} 11...
Qh5 {[%clk 0:02:46.8]} 12. Nd5 {[%clk 0:02:22.3]} 12... f4 {[%clk 0:02:16.7]}
13. exf4 {[%clk 0:02:05.2]} 13... exd4 {[%clk 0:02:11.8]} 14. Nxd4 {[%clk
0:01:55.3]} 14... Bg4 {[%clk 0:02:02.7]} 15. Qd2 {[%clk 0:01:37.8]} 15... Nxd4
{[%clk 0:01:14.8]} 16. Bxd4 {[%clk 0:01:36.8]} 16... Bxd4 {[%clk 0:01:15.7]} 17.
Qxd4 {[%clk 0:01:35.3]} 17... Bf3 {[%clk 0:01:15.8]} 18. Nxf6+ {[%clk
0:01:22.7]} 18... Rxf6 {[%clk 0:01:15.4]} 19. Bxf3 {[%clk 0:01:22.3]} 19... Qxf3
{[%clk 0:01:15.2]} 20. Qd5+ {[%clk 0:01:22.4]} 20... Qxd5 {[%clk 0:01:14.4]} 21.
cxd5 {[%clk 0:01:23]} 21... Rf5 {[%clk 0:01:13.6]} 22. Rfd1 {[%clk 0:01:22.6]}
22... Re8 {[%clk 0:01:12.5]} 23. Rac1 {[%clk 0:01:22]} 23... Re7 {[%clk
0:01:09.7]} 24. Rd2 {[%clk 0:01:21.3]} 24... Kf7 {[%clk 0:01:07.6]} 25. Kg2
{[%clk 0:01:21.3]} 25... h5 {[%clk 0:01:03.1]} 26. Kf3 {[%clk 0:01:20.7]} 26...
g5 {[%clk 0:01:02.9]} 27. Rdc2 {[%clk 0:01:09.5]} 27... gxf4 {[%clk 0:01:00.8]}
28. gxf4 {[%clk 0:01:07.4]} 28... Rxd5 {[%clk 0:00:59.7]} 29. Rxc7 {[%clk
0:01:06.8]} 29... Rd2 {[%clk 0:00:56.3]} 30. Rxe7+ {[%clk 0:01:04.9]} 30... Kxe7
{[%clk 0:00:57.2]} 31. Rc7+ {[%clk 0:01:04.4]} 31... Ke6 {[%clk 0:00:56.4]} 32.
Rxb7 {[%clk 0:01:04.1]} 32... Rxa2 {[%clk 0:00:56.9]} 33. Rh7 {[%clk 0:01:03.3]}
33... Ra3 {[%clk 0:00:51.5]} 34. Rh6+ {[%clk 0:01:00.5]} 34... Kd5 {[%clk
0:00:50.3]} 35. Rxh5+ {[%clk 0:01:00.5]} 35... Kd4 {[%clk 0:00:50.1]} 36. Rh6
{[%clk 0:00:55.8]} 36... Rxb3+ {[%clk 0:00:49.2]} 37. Kg4 {[%clk 0:00:56.1]}
37... Kd5 {[%clk 0:00:46.1]} 38. h4 {[%clk 0:00:53.8]} 38... Rb2 {[%clk
0:00:43.4]} 39. Kg3 {[%clk 0:00:50.8]} 39... a5 {[%clk 0:00:41.3]} 40. Rh5+
{[%clk 0:00:50.2]} 40... Ke4 {[%clk 0:00:39]} 41. Rxa5 {[%clk 0:00:51]} 41... d5
{[%clk 0:00:39.6]} 42. h5 {[%clk 0:00:49.7]} 42... Rb1 {[%clk 0:00:39.4]} 43.
Kg2 {[%clk 0:00:46.9]} 43... d4 {[%clk 0:00:29.8]} 44. h6 {[%clk 0:00:43]} 44...
d3 {[%clk 0:00:25.3]} 45. h7 {[%clk 0:00:41.9]} 45... Rb8 {[%clk 0:00:15.6]} 46.
Ra4+ {[%clk 0:00:33.7]} 46... Kf5 {[%clk 0:00:12.4]} 47. Kf3 {[%clk 0:00:31]}
47... d2 {[%clk 0:00:11.4]} 48. Rd4 {[%clk 0:00:30.8]} 48... Rh8 {[%clk
0:00:09.3]} 49. Rd5+ {[%clk 0:00:28.6]} 49... Ke6 {[%clk 0:00:09]} 50. Rxd2
{[%clk 0:00:27.8]} 50... Rxh7 {[%clk 0:00:09.5]} 51. Re2+ {[%clk 0:00:26.6]}
51... Kf6 {[%clk 0:00:09.4]} 52. Ra2 {[%clk 0:00:22.5]} 52... Rb7 {[%clk
0:00:05.6]} 53. Ra5 {[%clk 0:00:21.9]} 53... Rb6 {[%clk 0:00:04.6]} 54. Kg4
{[%clk 0:00:21.7]} 54... Kg6 {[%clk 0:00:05.3]} 55. f5+ {[%clk 0:00:21.1]} 55...
Kf6 {[%clk 0:00:05.8]} 56. f4 {[%clk 0:00:21.1]} 56... Rc6 {[%clk 0:00:05.2]}
57. Re5 {[%clk 0:00:19.1]} 1-0

[Event "Early-Titled-Tuesday-Blitz-January-16-2024"]
[Site "Chess.com"]
[Date "2024.01.16"]
[Round "5"]
[White "shimastream"]
[Black "Rsnr"]
[Result "1-0"]
[WhiteElo "3017"]
[BlackElo "2866"]
[TimeControl "180+1"]
[EndTime "8:59:16 PST"]
[Termination "shimastream won by resignation"]

1. d4 {[%clk 0:02:54.4]} 1... d5 {[%clk 0:02:59.9]} 2. c4 {[%clk 0:02:53.6]}
2... c6 {[%clk 0:03:00.4]} 3. cxd5 {[%clk 0:02:50.4]} 3... cxd5 {[%clk
0:03:01.3]} 4. Nc3 {[%clk 0:02:50.9]} 4... Nf6 {[%clk 0:03:01.5]} 5. Bf4 {[%clk
0:02:51.5]} 5... Qb6 {[%clk 0:03:01.8]} 6. a3 {[%clk 0:02:44]} 6... Qxb2 {[%clk
0:02:32.4]} 7. Na4 {[%clk 0:02:43.6]} 7... Qb5 {[%clk 0:02:32.5]} 8. e4 {[%clk
0:02:44.2]} 8... Qa5+ {[%clk 0:02:28.7]} 9. Bd2 {[%clk 0:02:44]} 9... Qd8 {[%clk
0:02:29.1]} 10. e5 {[%clk 0:02:43.4]} 10... Ne4 {[%clk 0:02:29.5]} 11. Bd3
{[%clk 0:02:39.3]} 11... Nc6 {[%clk 0:02:12]} 12. Ne2 {[%clk 0:02:37.6]} 12...
Nxd2 {[%clk 0:01:49.6]} 13. Qxd2 {[%clk 0:02:38.5]} 13... Qa5 {[%clk 0:01:49.1]}
14. Nac3 {[%clk 0:02:37.3]} 14... e6 {[%clk 0:01:45.6]} 15. O-O {[%clk 0:02:27]}
15... Be7 {[%clk 0:01:45.1]} 16. Rfb1 {[%clk 0:01:54.9]} 16... O-O {[%clk
0:01:36.1]} 17. Qe3 {[%clk 0:01:49.5]} 17... a6 {[%clk 0:01:25.6]} 18. Ng3
{[%clk 0:01:38.4]} 18... g6 {[%clk 0:01:17.5]} 19. Nce2 {[%clk 0:01:34.9]} 19...
b5 {[%clk 0:01:05.5]} 20. Qh6 {[%clk 0:01:33.6]} 20... f5 {[%clk 0:00:40.7]} 21.
Rc1 {[%clk 0:00:52.9]} 21... Qb6 {[%clk 0:00:25.8]} 22. Rd1 {[%clk 0:00:28.4]}
22... Bd7 {[%clk 0:00:25.4]} 23. h4 {[%clk 0:00:28]} 23... Rf7 {[%clk
0:00:23.4]} 24. Nf1 {[%clk 0:00:20]} 24... Be8 {[%clk 0:00:14.3]} 25. Qf4 {[%clk
0:00:17.6]} 25... Rc8 {[%clk 0:00:11.4]} 26. Nh2 {[%clk 0:00:17.6]} 26... Qd8
{[%clk 0:00:08.1]} 27. Nf3 {[%clk 0:00:17.3]} 27... Na5 {[%clk 0:00:08.8]} 28.
Qg3 {[%clk 0:00:12.9]} 28... Kh8 {[%clk 0:00:08.7]} 29. Nf4 {[%clk 0:00:13.4]}
29... Bd7 {[%clk 0:00:07.4]} 30. Ng5 {[%clk 0:00:13.4]} 30... Bxg5 {[%clk
0:00:07.3]} 31. hxg5 {[%clk 0:00:14.3]} 31... Kg8 {[%clk 0:00:05.1]} 32. Qh4
{[%clk 0:00:13.6]} 32... Nc4 {[%clk 0:00:05.3]} 33. g3 {[%clk 0:00:14]} 33...
Nb2 {[%clk 0:00:04.7]} 34. Rd2 {[%clk 0:00:13.3]} 34... Nxd3 {[%clk 0:00:04.7]}
35. Rxd3 {[%clk 0:00:14.2]} 35... Rc4 {[%clk 0:00:04.8]} 36. Kg2 {[%clk
0:00:14.3]} 36... Rg7 {[%clk 0:00:03.3]} 37. Rh1 {[%clk 0:00:05.4]} 37... Qe7
{[%clk 0:00:03.8]} 38. Qh6 {[%clk 0:00:05.4]} 38... Qf7 {[%clk 0:00:03.7]} 39.
Rh4 {[%clk 0:00:05.3]} 39... Qe7 {[%clk 0:00:03.5]} 40. Rh3 {[%clk 0:00:05]}
40... Be8 {[%clk 0:00:03.8]} 41. Qh4 {[%clk 0:00:04.9]} 41... a5 {[%clk
0:00:04.1]} 42. Rh1 {[%clk 0:00:04.5]} 42... b4 {[%clk 0:00:03.3]} 43. axb4
{[%clk 0:00:05.4]} 43... axb4 {[%clk 0:00:04.1]} 44. Rb1 {[%clk 0:00:05.5]}
44... Ba4 {[%clk 0:00:03.5]} 45. Rb2 {[%clk 0:00:04.1]} 45... b3 {[%clk
0:00:03.9]} 46. Ne2 {[%clk 0:00:03.7]} 46... Rf7 {[%clk 0:00:03.5]} 47. Qf4
{[%clk 0:00:04]} 47... Rf8 {[%clk 0:00:03.7]} 48. Nc3 {[%clk 0:00:04.3]} 48...
Rb8 {[%clk 0:00:03.8]} 49. Nxa4 {[%clk 0:00:04.4]} 49... Rxa4 {[%clk 0:00:04.7]}
50. Rdxb3 {[%clk 0:00:05.1]} 50... Rxb3 {[%clk 0:00:05.6]} 51. Rxb3 {[%clk
0:00:05.9]} 51... Qa7 {[%clk 0:00:03.8]} 52. Qc1 {[%clk 0:00:05.2]} 52... Rxd4
{[%clk 0:00:02.9]} 53. Qc8+ {[%clk 0:00:05.2]} 53... Kg7 {[%clk 0:00:03.5]} 54.
Rb7+ {[%clk 0:00:05.8]} 1-0

[Event "Early-Titled-Tuesday-Blitz-January-16-2024"]
[Site "Chess.com"]
[Date "2024.01.16"]
[Round "5"]
[White "PavelChernomordik"]
[Black "LuisFSiles"]
[Result "0-1"]
[WhiteElo "2407"]
[BlackElo "2255"]
[TimeControl "180+1"]
[EndTime "8:59:16 PST"]
[Termination "LuisFSiles won on time"]

1. e4 {[%clk 0:03:00.9]} 1... c5 {[%clk 0:02:58]} 2. Nc3 {[%clk 0:02:54]} 2...
g6 {[%clk 0:02:52.3]} 3. f4 {[%clk 0:02:52.8]} 3... Bg7 {[%clk 0:02:51.6]} 4.
Nf3 {[%clk 0:02:51.3]} 4... Nc6 {[%clk 0:02:51.8]} 5. Bb5 {[%clk 0:02:49.7]}
5... Nd4 {[%clk 0:02:51.5]} 6. Bc4 {[%clk 0:02:43.9]} 6... e6 {[%clk 0:02:37.9]}
7. e5 {[%clk 0:02:42.9]} 7... Ne7 {[%clk 0:02:34.6]} 8. Ne4 {[%clk 0:02:40.6]}
8... O-O {[%clk 0:02:27.2]} 9. c3 {[%clk 0:02:31.7]} 9... Nxf3+ {[%clk
0:02:25.6]} 10. Qxf3 {[%clk 0:02:31.1]} 10... d5 {[%clk 0:02:25.9]} 11. exd6
{[%clk 0:02:29.8]} 11... Nf5 {[%clk 0:02:26.1]} 12. Nxc5 {[%clk 0:02:23.4]}
12... Qxd6 {[%clk 0:02:15]} 13. Ne4 {[%clk 0:02:17.6]} 13... Qc7 {[%clk
0:02:11.4]} 14. b3 {[%clk 0:02:07.1]} 14... Nh4 {[%clk 0:02:10.7]} 15. Qe2
{[%clk 0:01:48]} 15... Qxf4 {[%clk 0:01:54.8]} 16. g3 {[%clk 0:01:32.7]} 16...
Qf3 {[%clk 0:01:49.3]} 17. Rf1 {[%clk 0:01:23.9]} 17... Qxe2+ {[%clk 0:01:29.3]}
18. Kxe2 {[%clk 0:01:23.6]} 18... Nf5 {[%clk 0:01:29.1]} 19. Ba3 {[%clk
0:01:17.7]} 19... Rd8 {[%clk 0:01:28.3]} 20. g4 {[%clk 0:01:16.8]} 20... Re8
{[%clk 0:01:14.9]} 21. Kd1 {[%clk 0:01:02.9]} 21... Nh6 {[%clk 0:00:19.7]} 22.
Bb5 {[%clk 0:00:49.9]} 22... Rd8 {[%clk 0:00:17.9]} 23. Be7 {[%clk 0:00:43.1]}
23... Rd5 {[%clk 0:00:17.3]} 24. Bc4 {[%clk 0:00:37.9]} 24... Re5 {[%clk
0:00:17.4]} 25. Nf6+ {[%clk 0:00:29.5]} 25... Bxf6 {[%clk 0:00:16.3]} 26. Bxf6
{[%clk 0:00:29]} 26... Nxg4 {[%clk 0:00:17]} 27. Bxe5 {[%clk 0:00:27.9]} 27...
Nxe5 {[%clk 0:00:17.9]} 28. Be2 {[%clk 0:00:22.1]} 28... Bd7 {[%clk 0:00:16.5]}
29. d4 {[%clk 0:00:21.9]} 29... Nc6 {[%clk 0:00:15.8]} 30. Bf3 {[%clk
0:00:21.8]} 30... Rd8 {[%clk 0:00:15.9]} 31. Kc2 {[%clk 0:00:21.1]} 31... b6
{[%clk 0:00:15.1]} 32. Rad1 {[%clk 0:00:19.5]} 32... Kg7 {[%clk 0:00:15.4]} 33.
d5 {[%clk 0:00:19.2]} 33... exd5 {[%clk 0:00:14.9]} 34. Rxd5 {[%clk 0:00:18.5]}
34... Ne7 {[%clk 0:00:12.3]} 35. Rd2 {[%clk 0:00:15.7]} 35... Bf5+ {[%clk
0:00:12.4]} 36. Kc1 {[%clk 0:00:15.6]} 36... Rc8 {[%clk 0:00:11.9]} 37. Kb2
{[%clk 0:00:15.1]} 37... Nc6 {[%clk 0:00:12.1]} 38. Bxc6 {[%clk 0:00:13.2]}
38... Rxc6 {[%clk 0:00:13]} 39. Re1 {[%clk 0:00:12.4]} 39... h5 {[%clk
0:00:11.3]} 40. Re7 {[%clk 0:00:11.8]} 40... a5 {[%clk 0:00:11.5]} 41. h4 {[%clk
0:00:11.3]} 41... Rf6 {[%clk 0:00:10.3]} 42. Rd4 {[%clk 0:00:10.2]} 42... Bg4
{[%clk 0:00:10]} 43. c4 {[%clk 0:00:08.4]} 43... g5 {[%clk 0:00:08.9]} 44. hxg5
{[%clk 0:00:08.1]} 44... Rf2+ {[%clk 0:00:09.1]} 45. Ka3 {[%clk 0:00:07.6]}
45... Be6 {[%clk 0:00:08.6]} 46. Rd6 {[%clk 0:00:06.3]} 46... Kg6 {[%clk
0:00:08.9]} 47. Rxb6 {[%clk 0:00:05.5]} 47... h4 {[%clk 0:00:09.3]} 48. Re8
{[%clk 0:00:04.3]} 48... h3 {[%clk 0:00:08.9]} 49. Rh8 {[%clk 0:00:02.8]} 49...
h2 {[%clk 0:00:09.2]} 50. c5 {[%clk 0:00:01.1]} 50... Kxg5 {[%clk 0:00:09.1]}
0-1

[Event "Early-Titled-Tuesday-Blitz-January-16-2024"]
[Site "Chess.com"]
[Date "2024.01.16"]
[Round "5"]
[White "EvgenyBurmakin"]
[Black "Allion2017"]
[Result "1-0"]
[WhiteElo "2388"]
[BlackElo "2030"]
[TimeControl "180+1"]
[EndTime "8:59:16 PST"]
[Termination "EvgenyBurmakin won by resignation"]

1. e4 {[%clk 0:03:00.9]} 1... c5 {[%clk 0:02:54.3]} 2. Nc3 {[%clk 0:03:00.8]}
2... Nc6 {[%clk 0:02:52.2]} 3. Bb5 {[%clk 0:03:01.3]} 3... Nd4 {[%clk
0:02:49.6]} 4. Bc4 {[%clk 0:03:01.5]} 4... e6 {[%clk 0:02:49.2]} 5. Nf3 {[%clk
0:02:59]} 5... Nxf3+ {[%clk 0:02:44.6]} 6. Qxf3 {[%clk 0:02:57.8]} 6... Be7
{[%clk 0:02:44.5]} 7. d3 {[%clk 0:02:55]} 7... a6 {[%clk 0:02:41.9]} 8. a4
{[%clk 0:02:53.9]} 8... d6 {[%clk 0:02:38.1]} 9. Bd2 {[%clk 0:02:50.5]} 9... Nf6
{[%clk 0:02:38.5]} 10. O-O {[%clk 0:02:49]} 10... O-O {[%clk 0:02:38.7]} 11. Qg3
{[%clk 0:02:41]} 11... Kh8 {[%clk 0:02:32.9]} 12. f4 {[%clk 0:02:40.3]} 12...
Bd7 {[%clk 0:02:28]} 13. e5 {[%clk 0:02:32.1]} 13... Ne8 {[%clk 0:02:22.3]} 14.
exd6 {[%clk 0:02:01.1]} 14... Nxd6 {[%clk 0:02:19]} 15. Ne4 {[%clk 0:01:56.9]}
15... Nxc4 {[%clk 0:02:14.4]} 16. dxc4 {[%clk 0:01:57.8]} 16... Bc6 {[%clk
0:02:14.8]} 17. Bc3 {[%clk 0:01:54.9]} 17... Bf6 {[%clk 0:02:01.9]} 18. Nxf6
{[%clk 0:01:53.6]} 18... gxf6 {[%clk 0:02:01.8]} 19. Qh4 {[%clk 0:01:53.4]}
19... e5 {[%clk 0:01:55.8]} 20. fxe5 {[%clk 0:01:51.5]} 20... Rg8 {[%clk
0:01:51.8]} 21. g3 {[%clk 0:01:39.3]} 21... Rg6 {[%clk 0:01:49]} 22. Rxf6 {[%clk
0:01:31.6]} 22... Rxf6 {[%clk 0:01:48.1]} 23. exf6 {[%clk 0:01:32.5]} 23... Qd7
{[%clk 0:01:37.5]} 24. Qf4 {[%clk 0:01:01.4]} 24... Qh3 {[%clk 0:01:29.9]} 25.
Qf2 {[%clk 0:00:57.7]} 25... Re8 {[%clk 0:01:22.1]} 26. Re1 {[%clk 0:00:50.8]}
26... Rxe1+ {[%clk 0:01:20.1]} 27. Bxe1 {[%clk 0:00:51.7]} 27... h5 {[%clk
0:01:19.1]} 28. Bc3 {[%clk 0:00:44.6]} 28... Qe6 {[%clk 0:01:18.8]} 29. Qd2
{[%clk 0:00:39.3]} 29... Kh7 {[%clk 0:01:13.2]} 30. Qg5 {[%clk 0:00:37.3]} 30...
Qg4 {[%clk 0:00:59.2]} 31. Qxg4 {[%clk 0:00:24.4]} 31... hxg4 {[%clk 0:00:58.6]}
32. a5 {[%clk 0:00:22.3]} 32... Be4 {[%clk 0:00:55.2]} 33. Kf2 {[%clk
0:00:20.4]} 33... Bxc2 {[%clk 0:00:55.7]} 34. Ke3 {[%clk 0:00:20.9]} 34... Kg6
{[%clk 0:00:53.6]} 35. Kf4 {[%clk 0:00:21.1]} 35... Kh5 {[%clk 0:00:53.5]} 36.
Be5 {[%clk 0:00:19.9]} 36... Bb3 {[%clk 0:00:51.8]} 37. Bd6 {[%clk 0:00:20.2]}
37... Bxc4 {[%clk 0:00:51.4]} 38. Bxc5 {[%clk 0:00:20.7]} 38... Bb5 {[%clk
0:00:51.4]} 39. b4 {[%clk 0:00:20.2]} 39... Bc6 {[%clk 0:00:51]} 40. Bf8 {[%clk
0:00:20.3]} 40... Bf3 {[%clk 0:00:51]} 41. h4 {[%clk 0:00:19.5]} 41... Bd1
{[%clk 0:00:48]} 42. Bd6 {[%clk 0:00:18.8]} 42... Kg6 {[%clk 0:00:46]} 43. Be5
{[%clk 0:00:17.5]} 43... Bf3 {[%clk 0:00:44.8]} 44. Bd4 {[%clk 0:00:17.2]} 44...
Bd1 {[%clk 0:00:44]} 45. Ke5 {[%clk 0:00:17.1]} 45... Bf3 {[%clk 0:00:40.6]} 46.
Kd6 {[%clk 0:00:17.1]} 46... Kf5 {[%clk 0:00:37.6]} 47. Ke7 {[%clk 0:00:16.6]}
47... Kg6 {[%clk 0:00:38.1]} 48. h5+ {[%clk 0:00:16.2]} 48... Kxh5 {[%clk
0:00:33.4]} 49. Kxf7 {[%clk 0:00:16.8]} 49... Kh6 {[%clk 0:00:32.7]} 50. Kg8
{[%clk 0:00:09.7]} 50... Bd5+ {[%clk 0:00:28.2]} 51. Kf8 {[%clk 0:00:09.7]}
51... Kg6 {[%clk 0:00:28.7]} 52. Ke7 {[%clk 0:00:09.9]} 52... Bf7 {[%clk
0:00:26.6]} 53. Kd6 {[%clk 0:00:09.7]} 53... Kf5 {[%clk 0:00:25.2]} 54. Ke7
{[%clk 0:00:09.2]} 54... Bd5 {[%clk 0:00:24.3]} 55. f7 {[%clk 0:00:08.8]} 1-0

[Event "Early-Titled-Tuesday-Blitz-January-16-2024"]
[Site "Chess.com"]
[Date "2024.01.16"]
[Round "5"]
[White "BursaBBSatranc"]
[Black "evgchess5"]
[Result "0-1"]
[WhiteElo "2715"]
[BlackElo "2974"]
[TimeControl "180+1"]
[EndTime "8:59:18 PST"]
[Termination "evgchess5 won on time"]

1. d4 {[%clk 0:03:00.9]} 1... Nf6 {[%clk 0:02:58.3]} 2. Nf3 {[%clk 0:02:59.4]}
2... e6 {[%clk 0:02:58.3]} 3. Bf4 {[%clk 0:02:59.6]} 3... c5 {[%clk 0:02:57.9]}
4. e3 {[%clk 0:03:00]} 4... Nc6 {[%clk 0:02:57.8]} 5. c3 {[%clk 0:03:00.3]} 5...
d5 {[%clk 0:02:57.5]} 6. Nbd2 {[%clk 0:03:00.3]} 6... cxd4 {[%clk 0:02:57.7]} 7.
exd4 {[%clk 0:03:00]} 7... Nh5 {[%clk 0:02:57.7]} 8. Be3 {[%clk 0:03:00.3]} 8...
Bd6 {[%clk 0:02:57.7]} 9. Bd3 {[%clk 0:03:00.8]} 9... Nf4 {[%clk 0:02:56]} 10.
Bxf4 {[%clk 0:03:01.2]} 10... Bxf4 {[%clk 0:02:56]} 11. g3 {[%clk 0:03:01.9]}
11... Bd6 {[%clk 0:02:53.8]} 12. O-O {[%clk 0:03:02.2]} 12... O-O {[%clk
0:02:52.4]} 13. Qe2 {[%clk 0:03:01.9]} 13... f6 {[%clk 0:02:44.2]} 14. c4 {[%clk
0:02:31.2]} 14... g6 {[%clk 0:02:44.1]} 15. a3 {[%clk 0:02:28.4]} 15... a5
{[%clk 0:02:40.6]} 16. Rfe1 {[%clk 0:02:19.7]} 16... Kg7 {[%clk 0:02:38.7]} 17.
Qe3 {[%clk 0:02:09.9]} 17... a4 {[%clk 0:02:20.8]} 18. Rac1 {[%clk 0:02:08.8]}
18... Bd7 {[%clk 0:02:06.6]} 19. Bf1 {[%clk 0:02:06.2]} 19... Na5 {[%clk
0:01:56.6]} 20. Bh3 {[%clk 0:01:42.5]} 20... Re8 {[%clk 0:01:54]} 21. Bg2 {[%clk
0:00:53.7]} 21... Rc8 {[%clk 0:01:45.4]} 22. c5 {[%clk 0:00:49.6]} 22... Bb8
{[%clk 0:01:42]} 23. Qd3 {[%clk 0:00:42.3]} 23... b6 {[%clk 0:01:38.3]} 24. b4
{[%clk 0:00:21]} 24... axb3 {[%clk 0:01:36.8]} 25. Nxb3 {[%clk 0:00:21.7]} 25...
Nxb3 {[%clk 0:01:15.5]} 26. Qxb3 {[%clk 0:00:22.6]} 26... Ba7 {[%clk 0:01:14.3]}
27. cxb6 {[%clk 0:00:20.5]} 27... Qxb6 {[%clk 0:01:13.9]} 28. Qxb6 {[%clk
0:00:20.6]} 28... Bxb6 {[%clk 0:01:13.9]} 29. Bf1 {[%clk 0:00:20.9]} 29... Kf7
{[%clk 0:00:59.8]} 30. Rxc8 {[%clk 0:00:19.3]} 30... Rxc8 {[%clk 0:00:58.5]} 31.
Rb1 {[%clk 0:00:20.2]} 31... Rb8 {[%clk 0:00:56]} 32. Bd3 {[%clk 0:00:18.5]}
32... Ke7 {[%clk 0:00:54.2]} 33. Kf1 {[%clk 0:00:17.6]} 33... Kd6 {[%clk
0:00:53.9]} 34. Ke2 {[%clk 0:00:17.8]} 34... Ba7 {[%clk 0:00:50.3]} 35. Rxb8
{[%clk 0:00:17.7]} 35... Bxb8 {[%clk 0:00:50.9]} 36. h4 {[%clk 0:00:18.3]} 36...
Be8 {[%clk 0:00:42]} 37. h5 {[%clk 0:00:18.3]} 37... e5 {[%clk 0:00:36]} 38.
hxg6 {[%clk 0:00:15.6]} 38... hxg6 {[%clk 0:00:33.6]} 39. dxe5+ {[%clk
0:00:15.6]} 39... fxe5 {[%clk 0:00:33.7]} 40. Ng5 {[%clk 0:00:13.5]} 40... e4
{[%clk 0:00:27.5]} 41. Ba6 {[%clk 0:00:13.3]} 41... Ke5 {[%clk 0:00:21.8]} 42.
f3 {[%clk 0:00:12.1]} 42... Kf5 {[%clk 0:00:20.5]} 43. f4 {[%clk 0:00:07.4]}
43... Bd7 {[%clk 0:00:18.9]} 44. Bb7 {[%clk 0:00:06.8]} 44... Be6 {[%clk
0:00:16.6]} 45. Nxe6 {[%clk 0:00:06.6]} 45... Kxe6 {[%clk 0:00:16.5]} 46. Bc8+
{[%clk 0:00:05.9]} 46... Kd6 {[%clk 0:00:15]} 47. a4 {[%clk 0:00:06.8]} 47...
Bc7 {[%clk 0:00:14.3]} 48. g4 {[%clk 0:00:05.5]} 48... d4 {[%clk 0:00:12.7]} 49.
f5 {[%clk 0:00:05.3]} 49... gxf5 {[%clk 0:00:12.8]} 50. Bxf5 {[%clk 0:00:06]}
50... Ke5 {[%clk 0:00:12.8]} 51. Bh7 {[%clk 0:00:05.6]} 51... d3+ {[%clk
0:00:13]} 52. Kd2 {[%clk 0:00:04.4]} 52... Kd4 {[%clk 0:00:11.7]} 53. Bf5 {[%clk
0:00:01.9]} 53... e3+ {[%clk 0:00:11]} 54. Kd1 {[%clk 0:00:02]} 54... e2+ {[%clk
0:00:11.2]} 0-1

[Event "Early-Titled-Tuesday-Blitz-January-16-2024"]
[Site "Chess.com"]
[Date "2024.01.16"]
[Round "5"]
[White "Herzog2012"]
[Black "Doublekk14"]
[Result "0-1"]
[WhiteElo "2531"]
[BlackElo "2267"]
[TimeControl "180+1"]
[EndTime "8:59:20 PST"]
[Termination "Doublekk14 won by resignation"]

1. e4 {[%clk 0:02:56.7]} 1... c5 {[%clk 0:02:59.4]} 2. Nf3 {[%clk 0:02:54.3]}
2... e6 {[%clk 0:02:59]} 3. g3 {[%clk 0:02:52.7]} 3... Nc6 {[%clk 0:02:58.1]} 4.
Bg2 {[%clk 0:02:50]} 4... d5 {[%clk 0:02:57]} 5. exd5 {[%clk 0:02:49.3]} 5...
exd5 {[%clk 0:02:56.8]} 6. d4 {[%clk 0:02:49.8]} 6... Nf6 {[%clk 0:02:53.8]} 7.
O-O {[%clk 0:02:47.8]} 7... Be7 {[%clk 0:02:53]} 8. Nc3 {[%clk 0:02:39.8]} 8...
cxd4 {[%clk 0:02:47.2]} 9. Nxd4 {[%clk 0:02:38]} 9... h6 {[%clk 0:02:47.1]} 10.
h3 {[%clk 0:02:32.5]} 10... O-O {[%clk 0:02:46.7]} 11. Be3 {[%clk 0:02:31.3]}
11... Bb4 {[%clk 0:02:33.4]} 12. Nce2 {[%clk 0:02:27.1]} 12... Ne5 {[%clk
0:02:27.8]} 13. b3 {[%clk 0:02:13.6]} 13... Ne4 {[%clk 0:02:20]} 14. Nf4 {[%clk
0:02:01.5]} 14... Bc3 {[%clk 0:02:04.8]} 15. Rb1 {[%clk 0:01:53.8]} 15... Ba5
{[%clk 0:01:55.7]} 16. Ra1 {[%clk 0:01:47]} 16... Bc3 {[%clk 0:01:53.7]} 17. Rb1
{[%clk 0:01:46.9]} 17... Ba5 {[%clk 0:01:52.3]} 18. Nfe2 {[%clk 0:01:45]} 18...
Qf6 {[%clk 0:01:32.5]} 19. c4 {[%clk 0:01:40.2]} 19... Ng5 {[%clk 0:00:52.9]}
20. f4 {[%clk 0:01:30.7]} 20... Nxh3+ {[%clk 0:00:52.6]} 21. Bxh3 {[%clk
0:01:29.5]} 21... Bxh3 {[%clk 0:00:52]} 22. fxe5 {[%clk 0:01:28.1]} 22... Qxe5
{[%clk 0:00:52.3]} 23. Rf3 {[%clk 0:01:17.1]} 23... dxc4 {[%clk 0:00:50.9]} 24.
bxc4 {[%clk 0:01:14.5]} 24... Rad8 {[%clk 0:00:43.3]} 25. Qd3 {[%clk 0:00:39]}
25... Bb6 {[%clk 0:00:39.1]} 26. Rb5 {[%clk 0:00:36]} 26... Qe7 {[%clk
0:00:30.4]} 27. Nf4 {[%clk 0:00:25.1]} 27... Bg4 {[%clk 0:00:28.9]} 28. Rf1
{[%clk 0:00:21.5]} 28... Qxe3+ {[%clk 0:00:28.6]} 29. Qxe3 {[%clk 0:00:19]}
29... Bxd4 {[%clk 0:00:28.9]} 30. Qxd4 {[%clk 0:00:12.4]} 30... Rxd4 {[%clk
0:00:28.7]} 31. Rxb7 {[%clk 0:00:13]} 31... Rxc4 {[%clk 0:00:28.1]} 32. Rxa7
{[%clk 0:00:13.2]} 32... Rc3 {[%clk 0:00:27.8]} 33. Kh2 {[%clk 0:00:10.7]} 33...
Rc2+ {[%clk 0:00:27.8]} 34. Kg1 {[%clk 0:00:10]} 34... Rd8 {[%clk 0:00:28.7]}
35. Ng2 {[%clk 0:00:04.8]} 35... Be6 {[%clk 0:00:26.3]} 36. Nf4 {[%clk 0:00:04]}
36... Bxa2 {[%clk 0:00:25.1]} 37. Rf2 {[%clk 0:00:03.8]} 37... Rxf2 {[%clk
0:00:23.9]} 38. Kxf2 {[%clk 0:00:04.7]} 38... Bc4 {[%clk 0:00:20.8]} 39. Rc7
{[%clk 0:00:05.1]} 39... Be6 {[%clk 0:00:20.4]} 40. Re7 {[%clk 0:00:03.5]} 40...
Bg4 {[%clk 0:00:20.1]} 41. Ra7 {[%clk 0:00:02.3]} 41... g5 {[%clk 0:00:19.3]}
42. Ng2 {[%clk 0:00:01.9]} 42... Rd2+ {[%clk 0:00:18.9]} 43. Kg1 {[%clk
0:00:02.5]} 43... Rd1+ {[%clk 0:00:18.8]} 44. Kf2 {[%clk 0:00:02.1]} 44... Rd2+
{[%clk 0:00:18.9]} 45. Kg1 {[%clk 0:00:02.1]} 45... f5 {[%clk 0:00:17.8]} 46.
Ne3 {[%clk 0:00:02]} 46... Rd3 {[%clk 0:00:16.5]} 47. Nxg4 {[%clk 0:00:01.4]}
47... Rxg3+ {[%clk 0:00:16.4]} 48. Kf2 {[%clk 0:00:02.3]} 48... Rxg4 {[%clk
0:00:17.1]} 49. Ra6 {[%clk 0:00:02.7]} 49... Rf4+ {[%clk 0:00:16.7]} 50. Kg3
{[%clk 0:00:03.1]} 50... Kg7 {[%clk 0:00:17.6]} 51. Ra7+ {[%clk 0:00:03.4]}
51... Kg6 {[%clk 0:00:17.6]} 52. Ra1 {[%clk 0:00:04.1]} 52... Rb4 {[%clk
0:00:15.6]} 53. Kf3 {[%clk 0:00:05]} 53... Rb3+ {[%clk 0:00:15.6]} 54. Kf2
{[%clk 0:00:05.5]} 54... g4 {[%clk 0:00:15.8]} 55. Ra8 {[%clk 0:00:04.8]} 55...
Kg5 {[%clk 0:00:15.9]} 0-1